[Event "*** Titled Tuesday Blitz"]
[Site "Chess.com"]
[Date "2021.03.16"]
[Round "9"]
[White "iturrizaga"]
[Black "Sharpchess22"]
[Result "1-0"]
[WhiteElo "2855"]
[BlackElo "2732"]
[TimeControl "180+1"]
[EndTime "11:44:54 PDT"]
[Termination "iturrizaga won by resignation"]

1. d4 {[%clk 0:02:59.8]} 1... Nf6 {[%clk 0:02:59.6]} 2. Nf3 {[%clk 0:02:58]}
2... g6 {[%clk 0:02:59.5]} 3. g3 {[%clk 0:02:57.6]} 3... Bg7 {[%clk 0:02:59.4]}
4. Bg2 {[%clk 0:02:58.3]} 4... O-O {[%clk 0:02:59.5]} 5. O-O {[%clk 0:02:59.2]}
5... d6 {[%clk 0:02:58.9]} 6. c4 {[%clk 0:02:59.8]} 6... Nc6 {[%clk 0:02:55.9]}
7. Nc3 {[%clk 0:03:00.1]} 7... e5 {[%clk 0:02:55.2]} 8. dxe5 {[%clk 0:02:56.2]}
8... dxe5 {[%clk 0:02:54.8]} 9. Bg5 {[%clk 0:02:54.8]} 9... Be6 {[%clk
0:02:54.5]} 10. Qa4 {[%clk 0:02:54.7]} 10... Qc8 {[%clk 0:02:37.5]} 11. Nd2
{[%clk 0:02:53.2]} 11... Bd7 {[%clk 0:02:31.4]} 12. Bxf6 {[%clk 0:02:50.3]}
12... Bxf6 {[%clk 0:02:29.6]} 13. Nde4 {[%clk 0:02:50.6]} 13... Bd8 {[%clk
0:02:17.7]} 14. Nc5 {[%clk 0:02:45.4]} 14... Be8 {[%clk 0:02:16.1]} 15. b4
{[%clk 0:02:29.5]} 15... a6 {[%clk 0:01:53.8]} 16. Rad1 {[%clk 0:02:19]} 16...
Nd4 {[%clk 0:01:33.2]} 17. Qa3 {[%clk 0:02:17.6]} 17... c6 {[%clk 0:01:28.9]}
18. e3 {[%clk 0:02:09.8]} 18... Ne6 {[%clk 0:01:24.7]} 19. N3e4 {[%clk
0:02:00.2]} 19... Nxc5 {[%clk 0:01:24.2]} 20. bxc5 {[%clk 0:01:56.7]} 20... Qe6
{[%clk 0:01:11.3]} 21. Qb4 {[%clk 0:01:47.3]} 21... Rb8 {[%clk 0:01:08.2]} 22.
Rd6 {[%clk 0:01:41.8]} 22... Qf5 {[%clk 0:01:04.1]} 23. g4 {[%clk 0:01:38.1]}
23... Qc8 {[%clk 0:00:57.4]} 24. g5 {[%clk 0:01:38.2]} 24... Be7 {[%clk
0:00:53.7]} 25. Rfd1 {[%clk 0:01:37.4]} 25... Bxd6 {[%clk 0:00:50.5]} 26. cxd6
{[%clk 0:01:34.6]} 26... Bd7 {[%clk 0:00:45.6]} 27. Nf6+ {[%clk 0:01:33.6]}
27... Kg7 {[%clk 0:00:44.3]} 28. c5 {[%clk 0:01:32.2]} 28... Bf5 {[%clk
0:00:41.4]} 29. Qh4 {[%clk 0:01:30.3]} 29... h5 {[%clk 0:00:40.1]} 30. gxh6+
{[%clk 0:01:31.2]} 30... Kh8 {[%clk 0:00:39.9]} 31. Qg5 {[%clk 0:01:24.1]} 31...
e4 {[%clk 0:00:37.6]} 32. Rd4 {[%clk 0:01:03.6]} 32... Qe6 {[%clk 0:00:37.2]}
33. Bxe4 {[%clk 0:01:02.4]} 33... Rbd8 {[%clk 0:00:32.2]} 34. h4 {[%clk
0:01:00]} 34... Qe5 {[%clk 0:00:27.4]} 35. Bxf5 {[%clk 0:00:55.1]} 35... Qxf5
{[%clk 0:00:27.5]} 36. Qxf5 {[%clk 0:00:55.4]} 36... gxf5 {[%clk 0:00:28.4]} 37.
a4 {[%clk 0:00:47.7]} 37... a5 {[%clk 0:00:24.3]} 38. Kg2 {[%clk 0:00:47.2]}
38... Rb8 {[%clk 0:00:22.7]} 39. Kf3 {[%clk 0:00:45.7]} 39... Rfd8 {[%clk
0:00:21.2]} 40. d7 {[%clk 0:00:33.4]} 40... b6 {[%clk 0:00:21.1]} 41. cxb6
{[%clk 0:00:32.6]} 41... Rxb6 {[%clk 0:00:21.3]} 42. Rd6 {[%clk 0:00:33.1]}
42... Ra6 {[%clk 0:00:18]} 43. Kf4 {[%clk 0:00:32.7]} 43... Rb6 {[%clk
0:00:18.4]} 44. Kxf5 {[%clk 0:00:33.2]} 44... Ra6 {[%clk 0:00:18.8]} 45. e4
{[%clk 0:00:29]} 45... Rb6 {[%clk 0:00:18.7]} 46. f4 {[%clk 0:00:29.4]} 46...
Ra6 {[%clk 0:00:18.8]} 47. e5 {[%clk 0:00:29.9]} 47... Rb6 {[%clk 0:00:19.2]}
48. e6 {[%clk 0:00:30.1]} 48... fxe6+ {[%clk 0:00:19.5]} 49. Kxe6 {[%clk
0:00:31]} 49... Ra6 {[%clk 0:00:15.3]} 50. Ke7 {[%clk 0:00:31.1]} 50... Raa8
{[%clk 0:00:15.6]} 51. Rd1 {[%clk 0:00:30.8]} 51... Rab8 {[%clk 0:00:14.3]} 52.
Rg1 {[%clk 0:00:31]} 52... Ra8 {[%clk 0:00:14.7]} 53. Rg7 {[%clk 0:00:31.1]} 1-0

[Event "*** Titled Tuesday Blitz"]
[Site "Chess.com"]
[Date "2021.03.16"]
[Round "9"]
[White "Dyadya81"]
[Black "CSB7"]
[Result "0-1"]
[WhiteElo "2723"]
[BlackElo "2621"]
[TimeControl "180+1"]
[EndTime "11:45:00 PDT"]
[Termination "CSB7 won by resignation"]

1. e4 {[%clk 0:03:00.9]} 1... e6 {[%clk 0:02:56.4]} 2. d4 {[%clk 0:03:00.6]}
2... d5 {[%clk 0:02:56.9]} 3. Nc3 {[%clk 0:03:01.1]} 3... Nf6 {[%clk 0:02:56.1]}
4. Bg5 {[%clk 0:02:59.8]} 4... dxe4 {[%clk 0:02:53.5]} 5. Nxe4 {[%clk 0:02:59]}
5... Be7 {[%clk 0:02:53.8]} 6. Nxf6+ {[%clk 0:02:57.1]} 6... Bxf6 {[%clk
0:02:53.5]} 7. Bxf6 {[%clk 0:02:56.9]} 7... Qxf6 {[%clk 0:02:54.4]} 8. Nf3
{[%clk 0:02:57.8]} 8... c5 {[%clk 0:02:50.8]} 9. c3 {[%clk 0:02:41.4]} 9... cxd4
{[%clk 0:02:46.3]} 10. Bb5+ {[%clk 0:02:40.9]} 10... Bd7 {[%clk 0:02:43.5]} 11.
Bxd7+ {[%clk 0:02:39.5]} 11... Nxd7 {[%clk 0:02:44.4]} 12. Qxd4 {[%clk
0:02:39.9]} 12... Qxd4 {[%clk 0:02:42.1]} 13. Nxd4 {[%clk 0:02:40.8]} 13... Ke7
{[%clk 0:02:37.6]} 14. O-O-O {[%clk 0:02:40]} 14... Rhd8 {[%clk 0:02:28.6]} 15.
Rhe1 {[%clk 0:02:34.4]} 15... g6 {[%clk 0:02:25.6]} 16. Nb3 {[%clk 0:02:23.5]}
16... Rac8 {[%clk 0:02:13.8]} 17. Rd4 {[%clk 0:02:13.4]} 17... Nc5 {[%clk
0:02:03.3]} 18. Nxc5 {[%clk 0:02:04]} 18... Rxc5 {[%clk 0:02:04.2]} 19. Rxd8
{[%clk 0:01:58.5]} 19... Kxd8 {[%clk 0:02:05.1]} 20. Kc2 {[%clk 0:01:58]} 20...
Ke7 {[%clk 0:01:58.8]} 21. b4 {[%clk 0:01:54.7]} 21... Rf5 {[%clk 0:01:36.3]}
22. Re2 {[%clk 0:01:50]} 22... h5 {[%clk 0:01:24]} 23. a4 {[%clk 0:01:38.8]}
23... h4 {[%clk 0:01:18.1]} 24. h3 {[%clk 0:01:39]} 24... Rg5 {[%clk 0:01:13.6]}
25. f3 {[%clk 0:01:38.1]} 25... Kd6 {[%clk 0:01:03.8]} 26. a5 {[%clk 0:01:22.7]}
26... b6 {[%clk 0:00:47]} 27. axb6 {[%clk 0:01:09]} 27... axb6 {[%clk
0:00:46.7]} 28. c4 {[%clk 0:01:05.1]} 28... Rg3 {[%clk 0:00:36.3]} 29. Kb3
{[%clk 0:01:01.5]} 29... Kc6 {[%clk 0:00:20]} 30. Kc3 {[%clk 0:00:54]} 30... Kd6
{[%clk 0:00:18.5]} 31. Rd2+ {[%clk 0:00:46]} 31... Kc6 {[%clk 0:00:16.2]} 32.
b5+ {[%clk 0:00:37.2]} 32... Kc7 {[%clk 0:00:10.9]} 33. Ra2 {[%clk 0:00:36.1]}
33... f5 {[%clk 0:00:04.9]} 34. Ra7+ {[%clk 0:00:34.5]} 34... Kb8 {[%clk
0:00:04.7]} 35. Re7 {[%clk 0:00:33.3]} 35... Rxg2 {[%clk 0:00:04.3]} 36. Rxe6
{[%clk 0:00:33.9]} 36... Kc7 {[%clk 0:00:04.8]} 37. Rxb6 {[%clk 0:00:34.8]}
37... Kxb6 {[%clk 0:00:04.6]} 38. Kb4 {[%clk 0:00:14.8]} 38... Rg3 {[%clk
0:00:05.5]} 39. c5+ {[%clk 0:00:15]} 39... Kc7 {[%clk 0:00:05.7]} 40. Ka5 {[%clk
0:00:15.9]} 40... Rxf3 {[%clk 0:00:05.5]} 41. b6+ {[%clk 0:00:16.8]} 41... Kc6
{[%clk 0:00:05.8]} 42. b7 {[%clk 0:00:17.4]} 42... Kxb7 {[%clk 0:00:05.2]} 43.
Kb5 {[%clk 0:00:17.9]} 43... Kc7 {[%clk 0:00:06.1]} 44. c6 {[%clk 0:00:18.8]}
44... Rxh3 {[%clk 0:00:06.5]} 45. Kc5 {[%clk 0:00:18.9]} 45... g5 {[%clk
0:00:07.4]} 46. Kd5 {[%clk 0:00:19.8]} 46... g4 {[%clk 0:00:07.9]} 47. Ke5
{[%clk 0:00:19.8]} 47... g3 {[%clk 0:00:07.7]} 48. Kxf5 {[%clk 0:00:20.7]} 48...
g2 {[%clk 0:00:08.6]} 49. Kg4 {[%clk 0:00:21.4]} 49... Rh1 {[%clk 0:00:08.5]}
50. Kf3 {[%clk 0:00:20]} 50... g1=Q {[%clk 0:00:08.6]} 51. Kf4 {[%clk
0:00:20.5]} 51... Qg2 {[%clk 0:00:08.5]} 0-1

[Event "*** Titled Tuesday Blitz"]
[Site "Chess.com"]
[Date "2021.03.16"]
[Round "9"]
[White "UCantHandleDenker"]
[Black "MartinMatthiesen"]
[Result "1-0"]
[WhiteElo "2516"]
[BlackElo "2390"]
[TimeControl "180+1"]
[EndTime "11:45:01 PDT"]
[Termination "UCantHandleDenker won by resignation"]

1. Nf3 {[%clk 0:03:00.9]} 1... d5 {[%clk 0:02:59]} 2. g3 {[%clk 0:03:01]} 2...
g6 {[%clk 0:02:58.8]} 3. Bg2 {[%clk 0:03:00.9]} 3... Bg7 {[%clk 0:02:59]} 4. O-O
{[%clk 0:03:01.2]} 4... e5 {[%clk 0:02:58.6]} 5. d3 {[%clk 0:03:01.8]} 5... Ne7
{[%clk 0:02:57.7]} 6. Nbd2 {[%clk 0:03:01.1]} 6... O-O {[%clk 0:02:56.6]} 7. e4
{[%clk 0:03:01.6]} 7... Nbc6 {[%clk 0:02:54.9]} 8. c3 {[%clk 0:03:00.4]} 8... h6
{[%clk 0:02:54.3]} 9. b4 {[%clk 0:02:49.2]} 9... a6 {[%clk 0:02:47.9]} 10. Qc2
{[%clk 0:02:47.9]} 10... Be6 {[%clk 0:02:46.8]} 11. Bb2 {[%clk 0:02:46]} 11...
Qd7 {[%clk 0:02:45.5]} 12. Rfe1 {[%clk 0:02:43.7]} 12... Rad8 {[%clk 0:02:40.3]}
13. a3 {[%clk 0:02:43.5]} 13... f5 {[%clk 0:02:24.9]} 14. exd5 {[%clk
0:02:30.3]} 14... Bxd5 {[%clk 0:02:17.6]} 15. c4 {[%clk 0:02:24.6]} 15... Bxf3
{[%clk 0:02:17.2]} 16. Nxf3 {[%clk 0:02:24.1]} 16... Qxd3 {[%clk 0:02:10.1]} 17.
Qxd3 {[%clk 0:02:22.9]} 17... Rxd3 {[%clk 0:02:11]} 18. Nxe5 {[%clk 0:02:22.4]}
18... Nxe5 {[%clk 0:02:08.4]} 19. Bxe5 {[%clk 0:02:22.9]} 19... Nc6 {[%clk
0:01:47.8]} 20. Bxc6 {[%clk 0:02:12]} 20... bxc6 {[%clk 0:01:46.8]} 21. Bxg7
{[%clk 0:02:04.8]} 21... Kxg7 {[%clk 0:01:47.7]} 22. Re5 {[%clk 0:02:00]} 22...
f4 {[%clk 0:01:41.3]} 23. Ra5 {[%clk 0:01:46.5]} 23... f3 {[%clk 0:01:28.9]} 24.
h3 {[%clk 0:01:42.2]} 24... h5 {[%clk 0:01:22.8]} 25. Rxa6 {[%clk 0:01:15.8]}
25... Rfd8 {[%clk 0:01:09.6]} 26. g4 {[%clk 0:01:12.4]} 26... h4 {[%clk
0:01:08.4]} 27. Rxc6 {[%clk 0:01:09.7]} 27... Rd1+ {[%clk 0:01:08.2]} 28. Rxd1
{[%clk 0:01:09.6]} 28... Rxd1+ {[%clk 0:01:09.1]} 29. Kh2 {[%clk 0:01:09.9]}
29... Rf1 {[%clk 0:01:09.4]} 30. Rxc7+ {[%clk 0:01:09.5]} 30... Kf6 {[%clk
0:01:09.6]} 31. Rc8 {[%clk 0:01:02.4]} 31... Rxf2+ {[%clk 0:01:08.6]} 32. Kg1
{[%clk 0:01:02.9]} 32... Rg2+ {[%clk 0:01:00.2]} 33. Kf1 {[%clk 0:01:02.9]}
33... Ke5 {[%clk 0:00:59.6]} 34. Rf8 {[%clk 0:00:55.6]} 34... Ke4 {[%clk
0:00:59.3]} 35. c5 {[%clk 0:00:45.3]} 35... Rc2 {[%clk 0:00:57.9]} 36. a4 {[%clk
0:00:40.9]} 36... Ke3 {[%clk 0:00:57.6]} 37. Re8+ {[%clk 0:00:40.1]} 37... Kf4
{[%clk 0:00:57.6]} 38. Rf8+ {[%clk 0:00:30.8]} 38... Kg3 {[%clk 0:00:57.6]} 39.
Ke1 {[%clk 0:00:25.5]} 39... f2+ {[%clk 0:00:49.3]} 40. Kd1 {[%clk 0:00:25.7]}
40... Rb2 {[%clk 0:00:36.5]} 41. b5 {[%clk 0:00:25.8]} 41... Rb4 {[%clk
0:00:24.1]} 42. Rxf2 {[%clk 0:00:19.7]} 42... Kxf2 {[%clk 0:00:23.1]} 43. c6
{[%clk 0:00:20.1]} 43... Rc4 {[%clk 0:00:13.2]} 44. a5 {[%clk 0:00:16.4]} 44...
Rc5 {[%clk 0:00:11.8]} 45. b6 {[%clk 0:00:10.6]} 45... Rxc6 {[%clk 0:00:11.7]}
46. b7 {[%clk 0:00:08.3]} 46... Rd6+ {[%clk 0:00:11.6]} 47. Kc2 {[%clk
0:00:07.4]} 47... Rd8 {[%clk 0:00:11.6]} 48. a6 {[%clk 0:00:07.9]} 48... Kg3
{[%clk 0:00:12]} 49. a7 {[%clk 0:00:07.1]} 49... Kxh3 {[%clk 0:00:12.1]} 50.
b8=Q {[%clk 0:00:07.6]} 1-0

[Event "*** Titled Tuesday Blitz"]
[Site "Chess.com"]
[Date "2021.03.16"]
[Round "9"]
[White "DrMamaliga"]
[Black "bait_or_mate"]
[Result "1/2-1/2"]
[WhiteElo "2394"]
[BlackElo "2501"]
[TimeControl "180+1"]
[EndTime "11:45:01 PDT"]
[Termination "Game drawn by agreement"]

1. c4 {[%clk 0:03:00.9]} 1... e5 {[%clk 0:03:00]} 2. Nc3 {[%clk 0:02:56.3]} 2...
Nc6 {[%clk 0:03:00.9]} 3. Nf3 {[%clk 0:02:56.3]} 3... g6 {[%clk 0:03:01.8]} 4.
e3 {[%clk 0:02:56.8]} 4... Bg7 {[%clk 0:03:02.4]} 5. d4 {[%clk 0:02:56.6]} 5...
exd4 {[%clk 0:03:02.4]} 6. exd4 {[%clk 0:02:56.7]} 6... Nge7 {[%clk 0:03:02.3]}
7. d5 {[%clk 0:02:56.9]} 7... Ne5 {[%clk 0:03:02.1]} 8. Nxe5 {[%clk 0:02:57]}
8... Bxe5 {[%clk 0:03:03]} 9. Bd3 {[%clk 0:02:57.5]} 9... O-O {[%clk 0:03:03.1]}
10. O-O {[%clk 0:02:58.1]} 10... d6 {[%clk 0:03:03.5]} 11. Qc2 {[%clk
0:02:57.8]} 11... Bf5 {[%clk 0:03:03.3]} 12. b3 {[%clk 0:02:57]} 12... Qd7
{[%clk 0:03:00.9]} 13. Bb2 {[%clk 0:02:56]} 13... Rfe8 {[%clk 0:03:01.2]} 14.
Rae1 {[%clk 0:02:53.7]} 14... a6 {[%clk 0:03:00.5]} 15. Bxf5 {[%clk 0:02:49.9]}
15... Nxf5 {[%clk 0:03:01.4]} 16. Ne4 {[%clk 0:02:49.9]} 16... Qe7 {[%clk
0:02:25.9]} 17. f4 {[%clk 0:02:39.2]} 17... Bd4+ {[%clk 0:02:14.5]} 18. Bxd4
{[%clk 0:02:38.7]} 18... Nxd4 {[%clk 0:02:15.4]} 19. Qc3 {[%clk 0:02:07]} 19...
f5 {[%clk 0:02:13]} 20. Nxd6 {[%clk 0:02:06.9]} 20... Ne2+ {[%clk 0:01:40]} 21.
Rxe2 {[%clk 0:02:06.2]} 21... Qxe2 {[%clk 0:01:40.9]} 22. Nxe8 {[%clk
0:02:06.4]} 22... Rxe8 {[%clk 0:01:41.8]} 23. a4 {[%clk 0:01:44.9]} 23... Qe3+
{[%clk 0:01:40.1]} 24. Qxe3 {[%clk 0:01:43.4]} 24... Rxe3 {[%clk 0:01:41]} 25.
Rf3 {[%clk 0:01:41.6]} 25... Re2 {[%clk 0:01:35.6]} 26. Rd3 {[%clk 0:01:39.4]}
26... Kf7 {[%clk 0:01:35.6]} 27. d6 {[%clk 0:01:33.8]} 27... cxd6 {[%clk
0:01:31.1]} 28. Rxd6 {[%clk 0:01:34.7]} 28... Ke8 {[%clk 0:01:27.8]} 29. Rb6
{[%clk 0:01:19.6]} 29... Re7 {[%clk 0:01:27.3]} 30. b4 {[%clk 0:01:13.4]} 30...
Kd8 {[%clk 0:01:27.2]} 31. c5 {[%clk 0:01:12.8]} 31... Kc7 {[%clk 0:01:27]} 32.
Rf6 {[%clk 0:01:09.6]} 32... Re4 {[%clk 0:01:16.1]} 33. Rf7+ {[%clk 0:01:03.2]}
33... Kc6 {[%clk 0:01:16.4]} 34. Rf6+ {[%clk 0:01:02.9]} 34... Kc7 {[%clk
0:01:13.4]} 35. b5 {[%clk 0:00:54.8]} 35... axb5 {[%clk 0:01:14.3]} 36. axb5
{[%clk 0:00:55.2]} 36... Rxf4 {[%clk 0:01:11.9]} 37. b6+ {[%clk 0:00:52.3]}
37... Kc8 {[%clk 0:01:06.9]} 38. Rf8+ {[%clk 0:00:50.7]} 38... Kd7 {[%clk
0:01:06.9]} 39. Rf7+ {[%clk 0:00:51.6]} 39... Kc6 {[%clk 0:00:59.8]} 40. Rc7+
{[%clk 0:00:50.2]} 40... Kd5 {[%clk 0:00:56.2]} 41. Rxh7 {[%clk 0:00:26.9]}
41... Kxc5 {[%clk 0:00:49.8]} 42. Rxb7 {[%clk 0:00:26.7]} 42... Kc6 {[%clk
0:00:49.9]} 43. Rb8 {[%clk 0:00:26.1]} 43... g5 {[%clk 0:00:31.8]} 44. Rg8
{[%clk 0:00:20.6]} 44... g4 {[%clk 0:00:22.4]} 45. Rg6+ {[%clk 0:00:20.6]} 45...
Kb7 {[%clk 0:00:22.8]} 46. h4 {[%clk 0:00:16.8]} 46... gxh3 {[%clk 0:00:22.4]}
47. gxh3 {[%clk 0:00:17.7]} 47... Rh4 {[%clk 0:00:17.5]} 48. Kg2 {[%clk
0:00:17.8]} 48... f4 {[%clk 0:00:17.8]} 49. Rf6 {[%clk 0:00:16.8]} 49... Ka6
{[%clk 0:00:16.1]} 50. Kf3 {[%clk 0:00:10.5]} 50... Rxh3+ {[%clk 0:00:14.9]} 51.
Kxf4 {[%clk 0:00:10.9]} 1/2-1/2

[Event "*** Titled Tuesday Blitz"]
[Site "Chess.com"]
[Date "2021.03.16"]
[Round "9"]
[White "Playgood28"]
[Black "NishaOnYoutube"]
[Result "1-0"]
[WhiteElo "2279"]
[BlackElo "2138"]
[TimeControl "180+1"]
[EndTime "11:45:04 PDT"]
[Termination "Playgood28 won on time"]

1. d4 {[%clk 0:03:00.9]} 1... f5 {[%clk 0:02:56.6]} 2. Nf3 {[%clk 0:02:59.1]}
2... Nf6 {[%clk 0:02:55.8]} 3. g3 {[%clk 0:02:58.5]} 3... g6 {[%clk 0:02:55.5]}
4. Bg2 {[%clk 0:02:58.4]} 4... Bg7 {[%clk 0:02:55.7]} 5. O-O {[%clk 0:02:58.5]}
5... O-O {[%clk 0:02:55.8]} 6. c4 {[%clk 0:02:58.9]} 6... d6 {[%clk 0:02:55.6]}
7. Nc3 {[%clk 0:02:59.2]} 7... Nc6 {[%clk 0:02:55.5]} 8. d5 {[%clk 0:02:58.4]}
8... Na5 {[%clk 0:02:55.4]} 9. Qd3 {[%clk 0:02:37.4]} 9... c5 {[%clk 0:02:51.6]}
10. dxc6 {[%clk 0:02:34.2]} 10... Nxc6 {[%clk 0:02:42]} 11. a3 {[%clk 0:02:00]}
11... Ng4 {[%clk 0:02:22.1]} 12. Rd1 {[%clk 0:01:36.5]} 12... Nge5 {[%clk
0:01:55.1]} 13. Nxe5 {[%clk 0:01:35.3]} 13... Nxe5 {[%clk 0:01:54.6]} 14. Qd5+
{[%clk 0:01:25.3]} 14... e6 {[%clk 0:01:38.9]} 15. Qxd6 {[%clk 0:01:21.8]} 15...
Qxd6 {[%clk 0:01:39.1]} 16. Rxd6 {[%clk 0:01:21.4]} 16... Nxc4 {[%clk 0:01:40]}
17. Rd1 {[%clk 0:01:20.5]} 17... Kf7 {[%clk 0:01:24.9]} 18. e4 {[%clk
0:01:19.3]} 18... Rb8 {[%clk 0:00:59.1]} 19. Rb1 {[%clk 0:01:18.6]} 19... Nxa3
{[%clk 0:00:57.4]} 20. Ra1 {[%clk 0:01:11.4]} 20... Bxc3 {[%clk 0:00:45.8]} 21.
bxc3 {[%clk 0:01:05.5]} 21... Nb5 {[%clk 0:00:45.4]} 22. Bb2 {[%clk 0:01:01.3]}
22... a6 {[%clk 0:00:40.1]} 23. c4 {[%clk 0:01:00.5]} 23... Na7 {[%clk
0:00:39.7]} 24. Be5 {[%clk 0:00:58.4]} 24... Ra8 {[%clk 0:00:39.3]} 25. Rxa6
{[%clk 0:00:57.1]} 25... bxa6 {[%clk 0:00:38.3]} 26. exf5 {[%clk 0:00:53.1]}
26... Nc6 {[%clk 0:00:26]} 27. Bxc6 {[%clk 0:00:49.8]} 27... Ra7 {[%clk
0:00:26.4]} 28. f6 {[%clk 0:00:47.6]} 28... a5 {[%clk 0:00:20.5]} 29. Ra1 {[%clk
0:00:39.8]} 29... Rd8 {[%clk 0:00:19]} 30. g4 {[%clk 0:00:33.2]} 30... Bd7
{[%clk 0:00:17.2]} 31. Rd1 {[%clk 0:00:28.8]} 31... Bxc6 {[%clk 0:00:15.2]} 32.
Rxd8 {[%clk 0:00:28]} 32... a4 {[%clk 0:00:14.4]} 33. g5 {[%clk 0:00:24]} 33...
a3 {[%clk 0:00:13.6]} 34. Rc8 {[%clk 0:00:24.2]} 34... Be8 {[%clk 0:00:11.6]}
35. Rc7+ {[%clk 0:00:20.9]} 35... Rxc7 {[%clk 0:00:10.9]} 36. Bxc7 {[%clk
0:00:21.4]} 36... a2 {[%clk 0:00:11.5]} 37. Be5 {[%clk 0:00:21.8]} 37... Bc6
{[%clk 0:00:09.8]} 38. Kf1 {[%clk 0:00:21.1]} 38... Bb7 {[%clk 0:00:07.2]} 39.
Ke1 {[%clk 0:00:20.4]} 39... Ba6 {[%clk 0:00:04]} 40. c5 {[%clk 0:00:18.9]}
40... Bb5 {[%clk 0:00:04.5]} 41. Kd2 {[%clk 0:00:18.8]} 41... Ba4 {[%clk
0:00:04.3]} 42. Kd3 {[%clk 0:00:18.6]} 42... Bb5+ {[%clk 0:00:03.2]} 43. Kc2
{[%clk 0:00:18.4]} 43... Bc6 {[%clk 0:00:03.4]} 44. Kb3 {[%clk 0:00:17.5]} 44...
Bd5+ {[%clk 0:00:04.3]} 45. Kb4 {[%clk 0:00:17.2]} 45... Ke8 {[%clk 0:00:03.8]}
46. Kb5 {[%clk 0:00:17.1]} 46... Kf7 {[%clk 0:00:02.9]} 47. Kb6 {[%clk
0:00:17.2]} 47... Bf3 {[%clk 0:00:01.4]} 48. c6 {[%clk 0:00:16.9]} 1-0

[Event "*** Titled Tuesday Blitz"]
[Site "Chess.com"]
[Date "2021.03.16"]
[Round "9"]
[White "ckgchess"]
[Black "xberli"]
[Result "1-0"]
[WhiteElo "2760"]
[BlackElo "2609"]
[TimeControl "180+1"]
[EndTime "11:45:07 PDT"]
[Termination "ckgchess won by checkmate"]

1. e4 {[%clk 0:03:00.9]} 1... c5 {[%clk 0:02:58.3]} 2. c3 {[%clk 0:03:00.9]}
2... Nf6 {[%clk 0:02:57.1]} 3. e5 {[%clk 0:03:01.2]} 3... Nd5 {[%clk 0:02:57.1]}
4. d4 {[%clk 0:03:02.1]} 4... cxd4 {[%clk 0:02:57.7]} 5. Qxd4 {[%clk 0:02:55.5]}
5... e6 {[%clk 0:02:47.6]} 6. Nf3 {[%clk 0:02:54.7]} 6... Nc6 {[%clk 0:02:46.1]}
7. Qe4 {[%clk 0:02:55.2]} 7... d6 {[%clk 0:02:39.2]} 8. Nbd2 {[%clk 0:02:54.8]}
8... dxe5 {[%clk 0:02:35.9]} 9. Nxe5 {[%clk 0:02:55.7]} 9... Nxe5 {[%clk
0:02:34.7]} 10. Qxe5 {[%clk 0:02:56.6]} 10... Bd7 {[%clk 0:02:08.4]} 11. Ne4
{[%clk 0:02:29.4]} 11... Qc7 {[%clk 0:01:36.8]} 12. Qxc7 {[%clk 0:02:24.1]}
12... Nxc7 {[%clk 0:01:37.7]} 13. Bf4 {[%clk 0:02:24.6]} 13... Nd5 {[%clk
0:01:36.2]} 14. Nd6+ {[%clk 0:02:19.5]} 14... Ke7 {[%clk 0:01:35]} 15. Bg3
{[%clk 0:02:15.8]} 15... Bc6 {[%clk 0:01:33.1]} 16. O-O-O {[%clk 0:02:14.9]}
16... Rd8 {[%clk 0:01:27.5]} 17. c4 {[%clk 0:02:02.9]} 17... Nf6 {[%clk
0:01:17.4]} 18. c5 {[%clk 0:01:54.3]} 18... Ne4 {[%clk 0:00:55.4]} 19. b4 {[%clk
0:01:23.3]} 19... Nxg3 {[%clk 0:00:51.9]} 20. hxg3 {[%clk 0:01:24.2]} 20... g6
{[%clk 0:00:46.3]} 21. f3 {[%clk 0:01:00.6]} 21... Bg7 {[%clk 0:00:42.3]} 22.
Bd3 {[%clk 0:00:54.1]} 22... Be5 {[%clk 0:00:36.4]} 23. Nc4 {[%clk 0:00:44.3]}
23... Bxg3 {[%clk 0:00:33.7]} 24. Be4 {[%clk 0:00:44.9]} 24... Bxe4 {[%clk
0:00:30.3]} 25. fxe4 {[%clk 0:00:45.8]} 25... Bf4+ {[%clk 0:00:20.3]} 26. Kc2
{[%clk 0:00:45.5]} 26... b5 {[%clk 0:00:19.9]} 27. cxb6 {[%clk 0:00:39.2]} 27...
axb6 {[%clk 0:00:20.8]} 28. Nxb6 {[%clk 0:00:40.1]} 28... Rb8 {[%clk 0:00:18.7]}
29. Rd7+ {[%clk 0:00:26.2]} 29... Kf6 {[%clk 0:00:14.3]} 30. Rf1 {[%clk
0:00:22.5]} 30... g5 {[%clk 0:00:11.5]} 31. Rd6 {[%clk 0:00:12.2]} 31... Kg6
{[%clk 0:00:09.5]} 32. Rc6 {[%clk 0:00:12.2]} 32... Rhd8 {[%clk 0:00:08.5]} 33.
a4 {[%clk 0:00:11.5]} 33... Rd2+ {[%clk 0:00:08.2]} 34. Kb3 {[%clk 0:00:12.1]}
34... Rxg2 {[%clk 0:00:08.5]} 35. a5 {[%clk 0:00:12.8]} 35... h5 {[%clk
0:00:07.6]} 36. a6 {[%clk 0:00:12.5]} 36... Be5 {[%clk 0:00:07.4]} 37. a7 {[%clk
0:00:11.6]} 37... Rb2+ {[%clk 0:00:05.4]} 38. Ka3 {[%clk 0:00:12.2]} 38... Rd8
{[%clk 0:00:04.9]} 39. a8=Q {[%clk 0:00:09.8]} 39... Rxa8+ {[%clk 0:00:05]} 40.
Nxa8 {[%clk 0:00:10.7]} 40... h4 {[%clk 0:00:05.6]} 41. Nb6 {[%clk 0:00:10.4]}
41... h3 {[%clk 0:00:05.2]} 42. Nc4 {[%clk 0:00:10.8]} 42... Re2 {[%clk
0:00:04.6]} 43. Nxe5+ {[%clk 0:00:11]} 43... Kh5 {[%clk 0:00:04.6]} 44. Rxf7
{[%clk 0:00:10.3]} 44... Re3+ {[%clk 0:00:04.3]} 45. Ka4 {[%clk 0:00:10.3]}
45... Kh4 {[%clk 0:00:04.3]} 46. Rxe6 {[%clk 0:00:08.9]} 46... Kg3 {[%clk
0:00:04.5]} 47. Rg6 {[%clk 0:00:07.4]} 47... Rxe4 {[%clk 0:00:04.6]} 48. Rxg5+
{[%clk 0:00:07.6]} 48... Kh4 {[%clk 0:00:05.2]} 49. Nf3# {[%clk 0:00:03.2]} 1-0